Workbook

Sheet Sheet1
A1: Producer Operational Data Summary | C1: Applicant: | E1: ABC Company | H1: U.S | J1: Ethanol Production Location: | L1: DEF Town, XY State
A2: CI Restults | B2: Corn, Wet DGS | C2: 73.59 | E2: (example CI) | G2: Sorghum, Wet DGS | H2: 74.15 | J2: (example CI) | L2: DRAFT - FOR DISCUSSION ONLY - DO NOT USE
B3: Corn, Modified DGS | E3: (example CI) | G3: Sorghum, Modified DGS | J3: (example CI)
B4: Corn, Dry DGS | E4: (example CI) | G4: Sorghum, Dry DGS | J4: (example CI)
C5: =AL36*B36/(B36+G36) -> 75043829.67 | H5: =AL36*G36/(B36+G36) -> 16524730.33
A6: Process:
A7: Data Years
G8: 7-MROW Mix | AT8: 3-CAMX Mix
A9: Beg Inv | B9: Corn | G9: Sorghum | L9: Dry DGS | Q9: Modified DGS | V9: Wet DGS | AA9: Syrup | AF9: Corn Oil | AO9: 1234560
A10: Monthly Data | B10: Corn Used (calculated) | C10: Corn Received | D10: Corn Inventory Adjustment | E10: Ending Corn Inventory | F10: Corn Transport | G10: Sorghum Used (calculated) | H10: Sorghum Received | I10: Sorghum Inventory Adjustment | J10: Ending Sorghum Inventory | K10: Sorghum Transport | L10: Dry DGS Produced (calculated) | M10: Dry DGS Inventory Adjustment | N10: Dry DGS Shipments | O10: Dry DGS Ending inventory | P10: Moisture Content | Q10: Modified DGS Produced (calculated) | R10: Modified DGS Inventory Adjustment | S10: Modified DGS Shipments | T10: Modified DGS Ending Inventory | U10: Moisture Content | V10: Wet DGS Produced (calculated) | W10: Wet DGS Inventory Adjustment | X10: Wet DGS Shipments | Y10: Wet DGS Ending Inventory | Z10: Moisture Content | AA10: Syrup Produced (calculated) | AB10: Syrup Inventory Adjustment | AC10: Syrup Shipments | AD10: Syrup Ending Inventory | AE10: Moisture Content | AF10: Corn Oil Produced (calculated) | AG10: Corn Oil Inventory Adjustment | AH10: Corn Oil Shipments | AI10: Corn Oil Ending Inventory | AJ10: Moisture Content | AK10: DGS Yield (calculated) | AL10: Ethanol Produced (calculated) | AM10: Ethanol Inventory Adjustment | AN10: Denatured Ethanol Shipments | AO10: Ending Denatured Ethanol | AP10: NG Use from Invoices | AQ10: Biomass Use from Invoices | AR10: Biomass Transport Distance | AS10: Biogas Use from Invoices | AT10: Biogas Parameters | AU10: Other Thermal Energy Use | AV10: Electricity from Utility Invoices | AW10: Other Electricity Sources | AX10: Ethanol Transport
A11: Unit | B11: Bushels | C11: Bushels | D11: Bushels | E11: Bushels | F11: Miles | G11: Bushels | H11: Bushels | I11: Bushels | J11: Bushels | K11: Miles | L11: Tons | M11: Tons | N11: Tons | O11: Tons | P11: % | Q11: Tons | R11: Tons | S11: Tons | T11: Tons | U11: % | V11: Tons | W11: Tons | X11: Tons | Y11: Tons | Z11: % | AA11: Tons | AB11: Tons | AC11: Tons | AD11: Tons | AE11: % | AF11: lbs. | AG11: lbs. | AH11: lbs. | AI11: lbs. | AJ11: % | AK11: Dry matter lbs/gal EtOH | AL11: Gallons @ 60o F | AM11: Gallons @ 60o F | AN11: Gallons @ 60o F | AO11: Gallons @ 60o F | AP11: MMBtu, HHV | AQ11: Dry Tons | AR11: Miles | AS11: MMBtu, HHV | AU11: MMBtu, HHV | AV11: kWh | AW11: kWh | AX11: Mode | AY11: Miles
A12: Month 1 | B12: =E9+C12-E12 -> 330000 | C12: 1330000 | E12: 1000000 | F12: By HDT Truck | G12: =J9+H12-J12 -> 0 | K12: By HDT Truck | L12: =N12+O12-O9 -> 888 | N12: 588 | O12: 300 | P12: 0.1 | Q12: =S12+T12-T9 -> 0 | S12: 0 | T12: 0 | U12: 0 | V12: =X12+Y12-Y9 -> 53000 | X12: 50000 | Y12: 3000 | Z12: 0.68 | AA12: =AC12+AD12-AD9 -> 2.2 | AC12: 1 | AD12: 1.2 | AE12: 0.65 | AF12: =AH12+AI12-AI9 -> 1400000 | AH12: 500000 | AI12: 900000 | AJ12: 0.005 | AK12: =(((L12*(1-P12)+Q12*(1-U12)+V12*(1-Z12)+AA12*(1-AE12))*2000+AF12*(1-AJ12)))/AL12 -> 19.08079357 | AL12: 1934560 | AN12: 1000000 | AO12: =AO9+AL12+AM12-AN12 -> 2169120 | AP12: 75500 | AQ12: 95 | AR12: By HDT Truck | AS12: 0 | AT12: Pipeline, miles | AV12: 1600000 | AX12: By Rail | AY12: 1396
A13: Month 2 | B13: =E12+C13-E13 -> 1300000 | C13: 1200000 | E13: 900000 | F13: 50 | G13: =J12+H13-J13 -> 0 | K13: 50 | L13: =N13+O13-O12 -> 1100 | N13: 800 | O13: 600 | P13: 0.11 | Q13: =S13+T13-T12 -> 0 | S13: 0 | T13: 0 | U13: 0 | V13: =X13+Y13-Y12 -> 52100 | X13: 55000 | Y13: 100 | Z13: 0.68 | AA13: =AC13+AD13-AD12 -> 1 | AC13: 1 | AD13: 1.2 | AE13: 0.65 | AF13: =AH13+AI13-AI12 -> 450000 | AH13: 500000 | AI13: 850000 | AJ13: =AJ12 -> 0.005 | AK13: 6.059398305 | AL13: 5900000 | AM13: -10000 | AN13: 1000000 | AO13: =AO12+AL13+AM13-AN13 -> 7059120 | AP13: 78000 | AQ13: 10 | AR13: 80 | AS13: 0 | AT13: 80 | AV13: 1500000
A14: Month 3 | B14: =E13+C14-E14 -> 1200000 | C14: 1400000 | E14: 1100000 | F14: By Rail | G14: =J13+H14-J14 -> 0 | K14: By Rail | L14: =N14+O14-O13 -> 116 | N14: 136 | O14: 580 | P14: 0.11 | Q14: =S14+T14-T13 -> 0 | S14: 0 | T14: 0 | U14: 0 | V14: =X14+Y14-Y13 -> 55485 | X14: 55555 | Y14: 30 | Z14: 0.68 | AA14: =AC14+AD14-AD13 -> 1 | AC14: 1 | AD14: 1.2 | AE14: 0.65 | AF14: =AH14+AI14-AI13 -> 600000 | AH14: 500000 | AI14: 950000 | AJ14: =AJ13 -> 0.005 | AK14: 5.502209091 | AL14: 6600000 | AN14: 1000000 | AO14: =AO13+AL14+AM14-AN14 -> 12659120 | AP14: 67000 | AQ14: 260 | AR14: By Rail | AS14: 0 | AV14: 1500000
A15: Month 4 | B15: 1200000 | C15: 1400000 | E15: 1300000 | F15: 1400 | G15: 400000 | H15: 1000000 | J15: 600000 | K15: 1400 | L15: 132 | N15: 100 | O15: 612 | P15: 0.11 | Q15: 0 | S15: 0 | T15: 0 | U15: 0 | V15: 22215 | X15: 22225 | Y15: 20 | Z15: 0.68 | AA15: 1 | AC15: 1 | AD15: 1.2 | AE15: 0.65 | AF15: 250000 | AH15: 500000 | AI15: 700000 | AJ15: 0.005 | AK15: 3.86895 | AL15: 3800000 | AN15: 1000000 | AO15: 15459120 | AP15: 73000 | AQ15: 200 | AR15: 2000 | AS15: 0 | AV15: 1500000 | AX15: By Heavy Duty Diesel Truck | AY15: 100
A16: Month 5 | B16: 1139000 | C16: 839000 | E16: 1000000 | G16: 2200000 | H16: 2000000 | J16: 400000 | L16: 135 | N16: 135 | O16: 612 | P16: 0.11 | Q16: 0 | S16: 0 | T16: 0 | U16: 0 | V16: 79992 | X16: 80000 | Y16: 12 | Z16: 0.68 | AA16: 1 | AC16: 1 | AD16: 1.2 | AE16: 0.65 | AF16: 300000 | AH16: 500000 | AI16: 500000 | AJ16: 0.005 | AK16: 8.768538983 | AL16: 5900000 | AN16: 1000000 | AO16: 20359120 | AP16: 53000 | AQ16: 100 | AS16: 0 | AV16: 1500000
A17: Month 6 | B17: 800000 | C17: 1300000 | E17: 1500000 | G17: 650000 | H17: 700000 | J17: 450000 | L17: 135 | N17: 135 | O17: 612 | P17: 0.11 | Q17: 0 | S17: 0 | T17: 0 | U17: 0 | V17: 90010 | X17: 90000 | Y17: 22 | Z17: 0.68 | AA17: 1 | AC17: 1 | AD17: 1.2 | AE17: 0.65 | AF17: 984000 | AH17: 500000 | AI17: 984000 | AJ17: 0.005 | AK17: 10.89379259 | AL17: 5400000 | AN17: 1500000 | AO17: 24259120 | AP17: 73000 | AQ17: 81 | AS17: 0 | AV17: 1500000 | AX17: By Other Modes
A18: Month 7 | B18: 2200000 | C18: 1500000 | E18: 800000 | G18: 450000 | L18: 435 | N18: 435 | O18: 612 | P18: 0.11 | Q18: 0 | S18: 0 | T18: 0 | U18: 0 | V18: 79980 | X18: 80000 | Y18: 2 | Z18: 0.68 | AA18: 1 | AC18: 1 | AD18: 1.2 | AE18: 0.65 | AF18: =AH18+AI18-AI17 -> 916000 | AH18: 800000 | AI18: 1100000 | AJ18: 0.005 | AK18: 23.66769024 | AL18: 2234000 | AN18: 2566000 | AO18: 23927120 | AP18: 77000 | AQ18: 105 | AS18: 0 | AV18: 1500000
A19: Month 8 | B19: 1300000 | C19: 1500000 | E19: 1000000 | G19: 0 | L19: 133 | N19: 133 | O19: 612 | P19: 0.11 | Q19: 0 | S19: 0 | T19: 0 | U19: 0 | V19: 50031 | X19: 50000 | Y19: 33 | Z19: 0.68 | AA19: 1 | AC19: 1 | AD19: 1.2 | AE19: 0.65 | AF19: 460000 | AH19: 600000 | AI19: 960000 | AJ19: 0.005 | AK19: 8.609205263 | AL19: 3800000 | AN19: 1000000 | AO19: 26727120 | AP19: 78999 | AQ19: 90 | AS19: 0 | AV19: 1500000 | AX19: Specify Mode | AY19: 0
A20: Month 9 | B20: 1580000 | C20: 1280000 | E20: 700000 | G20: 0 | L20: 461 | N20: 461 | O20: 612 | P20: 0.11 | Q20: 0 | S20: 0 | T20: 0 | U20: 0 | V20: 29972 | X20: 30000 | Y20: 5 | Z20: 0.68 | AA20: 1 | AC20: 1 | AD20: 1.2 | AE20: 0.65 | AF20: 380000 | AH20: 580000 | AI20: 760000 | AJ20: 0.005 | AK20: 9.2643 | AL20: 2200000 | AN20: 2600000 | AO20: 26327120 | AP20: 72000 | AQ20: 86 | AS20: 0 | AV20: 1500000 | AX20: Specify Mode | AY20: 0
A21: Month 10 | B21: 790000 | C21: 1290000 | E21: 1200000 | G21: 0 | L21: 314 | N21: 314 | O21: 612 | P21: 0.11 | Q21: 0 | S21: 0 | T21: 0 | U21: 0 | V21: 52273 | X21: 52222 | Y21: 56 | Z21: 0.68 | AA21: 1 | AC21: 1 | AD21: 1.2 | AE21: 0.65 | AF21: 550000 | AH21: 690000 | AI21: 620000 | AJ21: 0.005 | AK21: 21.60099375 | AL21: 1600000 | AN21: 3200000 | AO21: 24727120 | AP21: 68000 | AQ21: 66 | AS21: 0 | AV21: 1500000
A22: Month 11 | B22: 1750000 | C22: 1550000 | E22: 1000000 | G22: 0 | L22: 133 | N22: 133 | O22: 612 | P22: 0.11 | Q22: 0 | S22: 0 | T22: 0 | U22: 0 | V22: 55398 | X22: 55444 | Y22: 10 | Z22: 0.68 | AA22: 1 | AC22: 1 | AD22: 1.2 | AE22: 0.65 | AF22: 80000 | AH22: 500000 | AI22: 200000 | AJ22: 0.005 | AK22: 12.77562857 | AL22: 2800000 | AN22: 2000000 | AO22: 25527120 | AP22: 80000 | AQ22: 116 | AS22: 0 | AV22: 1500000
A23: Month 12 | B23: 950000 | C23: 1450000 | E23: 1500000 | G23: 0 | L23: 161 | N23: 161 | O23: 612 | P23: 0.11 | Q23: 0 | S23: 0 | T23: 0 | U23: 0 | V23: 10991 | X23: 11000 | Y23: 1 | Z23: 0.68 | AA23: 1 | AC23: 1 | AD23: 1.2 | AE23: 0.65 | AF23: 1200000 | AH23: 500000 | AI23: 900000 | AJ23: 0.005 | AK23: 2.240926316 | AL23: 3800000 | AN23: 1000000 | AO23: 28327120 | AP23: 85000 | AQ23: 115 | AS23: 0 | AV23: 1500000
A24: Month 13 | B24: 1908000 | C24: 1308000 | E24: 900000 | G24: 0 | L24: 131 | N24: 131 | O24: 612 | P24: 0.11 | Q24: 0 | S24: 0 | T24: 0 | U24: 0 | V24: 11049 | X24: 11000 | Y24: 50 | Z24: 0.68 | AA24: 1 | AC24: 1 | AD24: 1.2 | AE24: 0.65 | AF24: 500000 | AH24: 500000 | AI24: 900000 | AJ24: 0.005 | AK24: 2.053352632 | AL24: 3800000 | AN24: 1000000 | AO24: 31127120 | AP24: 80000 | AQ24: 111 | AS24: 0 | AV24: 1500000
A25: Month 14 | B25: 1208000 | C25: 1308000 | E25: 1000000 | G25: 0 | L25: 111 | N25: 111 | O25: 612 | P25: 0.11 | Q25: 0 | S25: 0 | T25: 0 | U25: 0 | V25: 11000 | X25: 11000 | Y25: 50 | Z25: 0.68 | AA25: 1 | AC25: 1 | AD25: 1.2 | AE25: 0.65 | AF25: 155500.47 | AH25: 500000 | AI25: 555500.47 | AJ25: 0.005 | AK25: 1.945527097 | AL25: 3800000 | AN25: 1000000 | AO25: 33927120 | AP25: 60000 | AQ25: 128 | AS25: 0 | AV25: 1500000
A26: Month 15 | B26: 1418000 | C26: 1308000 | E26: 890000 | G26: 0 | L26: 120 | N26: 120 | O26: 612 | P26: 0.11 | Q26: 0 | S26: 0 | T26: 0 | U26: 0 | V26: 10980 | X26: 11000 | Y26: 30 | Z26: 0.68 | AA26: 1 | AC26: 1 | AD26: 1.2 | AE26: 0.65 | AF26: 680467.5 | AH26: 500000 | AI26: 735967.97 | AJ26: 0.005 | AK26: 2.083832937 | AL26: 3800000 | AM26: -25000 | AN26: 1000000 | AO26: 36702120 | AP26: 82000 | AQ26: 126 | AS26: 0 | AV26: 1500000
A27: Month 16 | B27: 1198000 | C27: 1308000 | E27: 1000000 | G27: 0 | L27: 145 | N27: 145 | O27: 612 | P27: 0.11 | Q27: 0 | S27: 0 | T27: 0 | U27: 0 | V27: 10990 | X27: 11000 | Y27: 20 | Z27: 0.68 | AA27: 1 | AC27: 1 | AD27: 1.2 | AE27: 0.65 | AF27: 544032.03 | AH27: 500000 | AI27: 780000 | AJ27: 0.005 | AK27: 2.061503124 | AL27: 3800000 | AN27: 1000000 | AO27: 39502120 | AP27: 80000 | AQ27: 120 | AS27: 0 | AV27: 1500000
A28: Month 17 | B28: 1251110 | C28: 1308000 | E28: 1056890 | G28: 0 | L28: 123 | N28: 123 | O28: 612 | P28: 0.11 | Q28: 0 | S28: 0 | T28: 0 | U28: 0 | V28: 11040 | X28: 11000 | Y28: 60 | Z28: 0.68 | AA28: 1 | AC28: 1 | AD28: 1.2 | AE28: 0.65 | AF28: 688000 | AH28: 500000 | AI28: 968000 | AJ28: 0.005 | AK28: 2.097315789 | AL28: 3800000 | AN28: 1000000 | AO28: 42302120 | AP28: 82000 | AQ28: 116 | AS28: 0 | AV28: 1500000
A29: Month 18 | B29: 1702350 | C29: 1308000 | E29: 662540 | G29: 0 | L29: 56 | N29: 56 | O29: 612 | P29: 0.11 | Q29: 0 | S29: 0 | T29: 0 | U29: 0 | V29: 10995 | X29: 11000 | Y29: 55 | Z29: 0.68 | AA29: 1 | AC29: 1 | AD29: 1.2 | AE29: 0.65 | AF29: 212000 | AH29: 500000 | AI29: 680000 | AJ29: 0.005 | AK29: 1.933715789 | AL29: 3800000 | AN29: 1000000 | AO29: 45102120 | AP29: 77040 | AQ29: 116 | AS29: 0 | AV29: 1500000
A30: Month 19 | B30: 720540 | C30: 1308000 | E30: 1250000 | G30: =J29+H30-J30 -> 300000 | H30: 1000000 | J30: 700000 | L30: 548 | N30: 548 | O30: 612 | P30: 0.11 | Q30: 0 | S30: 0 | T30: 0 | U30: 0 | V30: 10996 | X30: 11000 | Y30: 51 | Z30: 0.68 | AA30: 1 | AC30: 1 | AD30: 1.2 | AE30: 0.65 | AF30: 590000 | AH30: 500000 | AI30: 770000 | AJ30: 0.005 | AK30: 2.263323684 | AL30: 3800000 | AN30: 1000000 | AO30: 47902120 | AP30: 79000 | AQ30: 86 | AS30: 0 | AV30: 1500000
A31: Month 20 | B31: 1670000 | C31: 1408000 | E31: 988000 | G31: 1670000 | H31: 1500000 | J31: 530000 | L31: 102 | N31: 102 | O31: 612 | P31: 0.11 | Q31: 0 | S31: 0 | T31: 0 | U31: 0 | V31: 10970 | X31: 11000 | Y31: 21 | Z31: 0.68 | AA31: 1 | AC31: 1 | AD31: 1.2 | AE31: 0.65 | AF31: 730000 | AH31: 500000 | AI31: 1000000 | AJ31: 0.005 | AK31: 2.086686842 | AL31: 3800000 | AN31: 1000000 | AO31: 50702120 | AP31: 77000 | AQ31: 86 | AS31: 0 | AV31: 1500000
A32: Month 21 | B32: 1743000 | C32: 1408000 | E32: 653000 | G32: 640000 | H32: 700000 | J32: 590000 | L32: 23 | N32: 23 | O32: 612 | P32: 0.11 | Q32: 0 | S32: 0 | T32: 0 | U32: 0 | V32: 10991 | X32: 11000 | Y32: 12 | Z32: 0.68 | AA32: 1 | AC32: 1 | AD32: 1.2 | AE32: 0.65 | AF32: 400000 | AH32: 500000 | AI32: 900000 | AJ32: 0.005 | AK32: 1.966810526 | AL32: 3800000 | AN32: 1000000 | AO32: 53502120 | AP32: 58000 | AQ32: 89 | AS32: 0 | AV32: 1500000
A33: Month 22 | B33: 625360 | C33: 1208000 | E33: 1235640 | G33: =J32+H33-J33 -> 590000 | L33: 110 | N33: 110 | O33: 612 | P33: 0.11 | Q33: 0 | S33: 0 | T33: 0 | U33: 0 | V33: 11001 | X33: 11000 | Y33: 13 | Z33: 0.68 | AA33: 1 | AC33: 1 | AD33: 1.2 | AE33: 0.65 | AF33: 655000 | AH33: 500000 | AI33: 1055000 | AJ33: 0.005 | AK33: 2.076017105 | AL33: 3800000 | AN33: 1000000 | AO33: 56302120 | AP33: 99000 | AQ33: 134 | AS33: 0 | AV33: 1500000
A34: Month 23 | B34: 1743640 | C34: 1508000 | E34: 1000000 | G34: 0 | L34: 200 | N34: 200 | O34: 612 | P34: 0.11 | Q34: 0 | S34: 0 | T34: 0 | U34: 0 | V34: 10997 | X34: 11000 | Y34: 10 | Z34: 0.68 | AA34: 1 | AC34: 1 | AD34: 1.2 | AE34: 0.65 | AF34: 645000 | AH34: 500000 | AI34: 1200000 | AJ34: 0.005 | AK34: 2.114882895 | AL34: 3800000 | AN34: 1000000 | AO34: 59102120 | AP34: 87000 | AQ34: 111 | AS34: 0 | AV34: 1500000
A35: Month 24 | B35: 1608000 | C35: 1508000 | E35: 900000 | G35: 0 | L35: 222 | N35: 222 | O35: 612 | P35: 0.11 | Q35: 0 | S35: 0 | T35: 0 | U35: 0 | V35: 11009 | X35: 11000 | Y35: 19 | Z35: 0.68 | AA35: 1 | AC35: 1 | AD35: 1.2 | AE35: 0.65 | AF35: 300000 | AH35: 500000 | AI35: 1000000 | AJ35: 0.005 | AK35: 2.036873684 | AL35: 3800000 | AN35: 1000000 | AO35: 61902120 | AP35: 80000 | AQ35: 127 | AS35: 0 | AV35: 1500000
A36: Total or Average | B36: =SUM(B12:B35) -> 31335000 | C36: =SUM(C12:C35) -> 32235000 | E36: =SUM(E12:E35) -> 24536070 | G36: =SUM(G12:G35) -> 6900000 | H36: 6900000 | J36: 3270000 | L36: =SUM(L12:L35) -> 6034 | N36: =SUM(N12:N35) -> 5422 | O36: =SUM(O12:O35) -> 14332 | P36: =AVERAGE(P12:P35) -> 0.1095833333 | Q36: =SUM(Q12:Q35) -> 0 | S36: =SUM(S12:S35) -> 0 | T36: 0 | U36: =AVERAGE(U12:U35) -> 0 | V36: =SUM(V12:V35) -> 763465 | X36: =SUM(X12:X35) -> 763446 | Y36: =SUM(Y12:Y35) -> 3682 | Z36: =AVERAGE(Z12:Z35) -> 0.68 | AA36: =SUM(AA12:AA35) -> 25.2 | AC36: =SUM(AC12:AC35) -> 24 | AD36: =SUM(AD12:AD35) -> 28.8 | AE36: =AVERAGE(AE12:AE35) -> 0.65 | AF36: =SUM(AF12:AF35) -> 13670000 | AH36: =SUM(AH12:AH35) -> 12670000 | AI36: =SUM(AI12:AI35) -> 19968468.44 | AJ36: =AVERAGE(AJ12:AJ35) -> 0.005 | AK36: 5.6021678 | AL36: =SUM(AL12:AL35) -> 91568560 | AM36: =SUM(AM12:AM35) -> -35000 | AN36: 30866000 | AO36: =SUM(AO12:AO35) -> 795602880 | AP36: =SUM(AP12:AP35) -> 1821539 | AQ36: 2674 | AS36: 0 | AU36: =SUM(AU12:AU35) -> 0 | AV36: 36100000 | AW36: =SUM(AW12:AW35) -> 0

Sheet Sheet2

Sheet Sheet3
